Cogmind - Beta 13 @@@ ROGUE MODE // 2024.07.13 @ 19:40:46 Player: N.W.L Result: Destroyed by G-47 Trooper with Particle Gun Performance ------------- Evolutions (3) 1500 Regions Visited (8) 1600 Robots Destroyed (8) 40 Value Destroyed (207) 207 Prototype IDs (24) 480 Alien Tech Used (0) 0 Bonus (1064) 1064 TOTAL SCORE: 4891 Bonus ------- Pacifist 564 Entered Garrisons 200 Aligned with FarCom 300 Cogmind --------- Core Integrity 0/700 Matter 176/300 Energy 100/100 System Corruption 1% Temperature Cool (18) Movement Flying (35) Location -7/Garrison Parts ------- > --- POWER (1) -------- (None) > --- PROPULSION (2) --- Improved Cesium-ion Thruster > --- UTILITY (8) ------ (None) > --- WEAPON (2) ------- (None) > --- INVENTORY (5) ---- Improved Ion Engine Chronowheel Peak State ------------ > --- POWER ------------ (None) > --- PROPULSION ------- Improved Cesium-ion Thruster > --- UTILITY ---------- (None) > --- WEAPON ----------- Rocket Launcher Heavy Mace > --- INVENTORY -------- Improved Ion Engine Chronowheel Rocket Launcher [Rating: 11] Favorites ----------- Power None Propulsion Improved Cesium-ion Thruster Flight Unit Improved Cesium-ion Thruster Utility None Weapon Heavy Mace Launcher Rocket Launcher Impact Weapon Heavy Mace Build | -11 -10 -9 -9 -9 -8 -8 -7 -7 ------- Run | Yrd Mat Mat Min Exi Min Mat Fac Gar Slots Evolved 6 | . . 2 . . . 2 2 . Power . | . . . . . . . . . Propulsion . | . . . . . . . . . Utility 6 | . . 2 . . . 2 2 . Weapon . | . . . . . . . . . Parts Attached 8 | . . . . . . 1 1 6 Power . | . . . . . . . . . Engine . | . . . . . . . . . Core . | . . . . . . . . . Reactor . | . . . . . . . . . Propulsion 2 | . . . . . . . . 2 Treads . | . . . . . . . . . Leg . | . . . . . . . . . Wheel . | . . . . . . . . . Hover . | . . . . . . . . . Flight 2 | . . . . . . . . 2 Utility . | . . . . . . . . . Device . | . . . . . . . . . Storage . | . . . . . . . . . Processor . | . . . . . . . . . Hackware . | . . . . . . . . . Protection . | . . . . . . . . . Artifact . | . . . . . . . . . Weapon 6 | . . . . . . 1 1 4 Energy Gun . | . . . . . . . . . Energy Cannon . | . . . . . . . . . Ballistic Gun . | . . . . . . . . . Ballistic Cannon . | . . . . . . . . . Launcher 5 | . . . . . . . 1 4 Special Weapon . | . . . . . . . . . Impact Weapon 1 | . . . . . . 1 . . Slashing Weapon . | . . . . . . . . . Piercing Weapon . | . . . . . . . . . Special Melee Weapon . | . . . . . . . . . Unidentified Prototypes 1 | . . . . . . . . 1 Parts Lost 3 | . . . . . . . . 3 Power . | . . . . . . . . . Propulsion . | . . . . . . . . . Utility . | . . . . . . . . . Weapon 3 | . . . . . . . . 3 Highest Loss Streak 3 | . . . . . . . . 3 To Critical Strikes . | . . . . . . . . . Average Slot Usage (%) 3 | . . . . . . 1 7 9 Impact Weapon 2 | . . . . . . 1 7 5 Naked Turns 351 | . 43 58 5 104 59 73 . 9 Heaviest Build 3 | . . . . . . 3 3 3 Greatest Support 6 | 3 3 3 3 3 3 3 3 6 Greatest Overweight (x) . | . . . . . . . . . Average Overweight (x) . | . . . . . . . . . Largest Inventory Capacity 5 | 5 5 5 5 5 5 5 5 5 Average Capacity 5 | 5 5 5 5 5 5 5 5 5 Most Carried 5 | . . 3 3 4 4 5 5 5 Average Carried 3 | . . . 3 3 4 4 4 4 Final Capacity 5 | 5 5 5 5 5 5 5 5 5 Final Carried 5 | . . 3 3 4 4 4 5 2 Class Distribution -------------------- 100% | Mutant Dominant Class ---------------- Mutant | -10/Materials Mutant | -9/Materials Mutant | -9/Mines Mutant | -9/Exiles Mutant | -8/Mines Mutant | -8/Materials Mutant | -7/Factory Mutant | -7/Garrison Resources | -11 -10 -9 -9 -9 -8 -8 -7 -7 ----------- Run | Yrd Mat Mat Min Exi Min Mat Fac Gar Matter Collected 218 | . . 200 . . . . 18 . Remotely . | . . . . . . . . . Salvage Created 130 | . . . . . . 8 18 104 Parts 10 | . . . . . . . . 10 Haulers Intercepted . | . . . . . . . . . Recyclers Shooed . | . . . . . . . . . Parts Field Recycled . | . . . . . . . . . Retrieved Matter . | . . . . . . . . . Parts Self-Destructed . | . . . . . . . . . Prevented . | . . . . . . . . . Kills | -11 -10 -9 -9 -9 -8 -8 -7 -7 ------- Run | Yrd Mat Mat Min Exi Min Mat Fac Gar Combat Hostiles Destroyed 6 | . . . . . . . . 6 AOE 6 | . . . . . . . . 6 Classes Destroyed 4 | . . . . . . 1 1 2 Worker 1 | . . . . . . 1 . . Operator 1 | . . . . . . . 1 . Swarmer 5 | . . . . . . . . 5 Grunt 1 | . . . . . . . . 1 Best Kill Streak 6 | . . . . . . 1 1 6 Combat Bots Only 6 | . . . . . . . . 6 Max Kills in Single Turn 2 | . . . . . . 1 1 2 Gunslinging . | . . . . . . . . . Exploded 2 | . . . . . . . . 2 Melee . | . . . . . . . . . Uniques/NPCs Destroyed . | . . . . . . . . . Combat | -11 -10 -9 -9 -9 -8 -8 -7 -7 -------- Run | Yrd Mat Mat Min Exi Min Mat Fac Gar Hostile Shots Fired 185 | . 6 23 . . . 10 69 77 Missed 85 | . 2 11 . . . 5 32 35 Damage Taken 1253 | . 34 101 . . 2 79 357 680 Core 919 | . 34 101 . . 2 79 286 417 Absorbed by Shields 75 | . . . . . . . 13 62 Core Remaining (%) 86 | 100 86 . . . 74 85 . . Volleys Fired 7 | . . . . . . . 1 6 Largest 1 | . . . . . . . 1 1 Hottest 33 | . . . . . . . 33 33 Shots Fired 7 | . . . . . . . 1 6 Gun . | . . . . . . . . . Cannon . | . . . . . . . . . Launcher 7 | . . . . . . . 1 6 Special . | . . . . . . . . . Kinetic . | . . . . . . . . . Thermal . | . . . . . . . . . Explosive 7 | . . . . . . . 1 6 Electromagnetic . | . . . . . . . . . Robot Hit Streak 1 | . . . . . . . . 1 Robot Miss Streak . | . . . . . . . . . Penetration Max . | . . . . . . . . . Secondary Targets . | . . . . . . . . . Shots Hit Robots 3 | . . . . . . 1 1 1 Core Hits 12 | . . . . . . . . 12 Critical Kills . | . . . . . . . . . Critical Parts Destroyed . | . . . . . . . . . Critical Strikes . | . . . . . . . . . Melee Attacks 4 | . . . . . . 2 2 . Impact 4 | . . . . . . 2 2 . Slashing . | . . . . . . . . . Piercing . | . . . . . . . . . Sneak Attacks 1 | . . . . . . 1 . . Combat Hostiles . | . . . . . . . . . Follow-up Attacks . | . . . . . . . . . Damage Inflicted 606 | . . 9 . . 5 63 55 474 Guns . | . . . . . . . . . Cannons . | . . . . . . . . . Explosions 474 | . . . . . . . . 474 Melee 118 | . . . . . . 63 55 . Ramming 14 | . . 9 . . 5 . . . Kinetic . | . . . . . . . . . Thermal . | . . . . . . . . . Explosive 474 | . . . . . . . . 474 Electromagnetic . | . . . . . . . . . Impact 118 | . . . . . . 63 55 . Slashing . | . . . . . . . . . Piercing . | . . . . . . . . . Highest Corruption 1 | . . . . . . . 1 1 Average Corruption 1 | . . . . . . . 1 1 Corruption Purged . | . . . . . . . . . Corruption Blocked . | . . . . . . . . . Effects 1 | . . . . . . . 1 . Energy Discharges 1 | . . . . . . . 1 . Overload Shots . | . . . . . . . . . Overflow Damage 43 | . . . . . . 23 20 . Projectiles . | . . . . . . . . . Explosions . | . . . . . . . . . Melee 43 | . . . . . . 23 20 . Knockbacks . | . . . . . . . . . Impact . | . . . . . . . . . Kinetic . | . . . . . . . . . Secondary . | . . . . . . . . . Self-Inflicted Damage 160 | . . 4 . . 2 . 52 102 Shots 4 | . . . . . . . 1 3 Rammed 3 | . . 2 . . 1 . . . Targets Rammed 3 | . . 2 . . 1 . . . Kicked . | . . . . . . . . . Crushed . | . . . . . . . . . Highest Temperature 2 | . . . . . . . . 2 Average Temperature 2 | . . . . . . . . 2 Received Heat Transfer 288 | . . 6 . . . 45 105 132 Siege Activations . | . . . . . . . . . Robots Corrupted . | . . . . . . . . . Combat Hostiles . | . . . . . . . . . Parts Fried 3 | . . . . . . 1 2 . Impact Corruptions 2 | . . . . . . 1 1 . Robots Melted . | . . . . . . . . . Combat Hostiles . | . . . . . . . . . Parts Melted . | . . . . . . . . . Heat Transferred . | . . . . . . . . . Parts Sabotaged . | . . . . . . . . . Parts Stolen . | . . . . . . . . . Parts Stripped . | . . . . . . . . . Power Chain Reactions . | . . . . . . . . . Alert | -11 -10 -9 -9 -9 -8 -8 -7 -7 ------- Run | Yrd Mat Mat Min Exi Min Mat Fac Gar Peak Influence 347 | . 15 55 21 . . 96 148 347 Initial 120 | . . 5 21 . . . 43 120 Average 70 | . 13 33 21 . . 23 84 226 Maximum Alert Level 1 | . . . . . . . . 1 Low Security (%) 93 | 100 100 100 100 . 100 100 100 59 Level 1 6 | . . . . . . . . 40 Level 2 . | . . . . . . . . . Level 3 . | . . . . . . . . . Level 4 . | . . . . . . . . . Level 5 . | . . . . . . . . . High Security . | . . . . . . . . . Max Security . | . . . . . . . . . Squads Dispatched 7 | . . 1 . . . 2 4 . Investigation 6 | . . 1 . . . 2 3 . Extermination . | . . . . . . . . . Reinforcement 1 | . . . . . . . 1 . Assault . | . . . . . . . . . Garrison . | . . . . . . . . . Intercept . | . . . . . . . . . Searches Triggered . | . . . . . . . . . Construction Impeded . | . . . . . . . . . Haulers Reinforced . | . . . . . . . . . Active Scanning Responses . | . . . . . . . . . Cargo Convoy Interrupts . | . . . . . . . . . Stealth | -11 -10 -9 -9 -9 -8 -8 -7 -7 --------- Run | Yrd Mat Mat Min Exi Min Mat Fac Gar Distress Signals 1 | . . . . . . 1 . . Communications Jammed . | . . . . . . . . . Distress Signals . | . . . . . . . . . Times Spotted 53 | . 3 8 . . . 14 10 18 Peak Tracking Total 15 | . 4 9 . . . 15 9 13 Tactical Retreats 2 | . . . . . . 2 . . Traps | -11 -10 -9 -9 -9 -8 -8 -7 -7 ------- Run | Yrd Mat Mat Min Exi Min Mat Fac Gar Traps Triggered 4 | . . . . . . . 1 3 Indirectly . | . . . . . . . . . Trap Hack Attempts . | . . . . . . . . . Triggered . | . . . . . . . . . Disarmed . | . . . . . . . . . Reprogrammed . | . . . . . . . . . Reused . | . . . . . . . . . Traps Extracted . | . . . . . . . . . Installed . | . . . . . . . . . Triggered . | . . . . . . . . . Machines | -11 -10 -9 -9 -9 -8 -8 -7 -7 ---------- Run | Yrd Mat Mat Min Exi Min Mat Fac Gar Machines Disabled . | . . . . . . . . . Max in Single Turn . | . . . . . . . . . Machines Repaired . | . . . . . . . . . Machines Dismantled . | . . . . . . . . . Machines Sabotaged . | . . . . . . . . . Overloaded Fab Kills . | . . . . . . . . . Hacking | -11 -10 -9 -9 -9 -8 -8 -7 -7 --------- Run | Yrd Mat Mat Min Exi Min Mat Fac Gar Machines Accessed 14 | . . 3 . 2 . 3 5 1 Terminals 11 | . . 3 . . . 3 4 1 Fabricators . | . . . . . . . . . Repair Stations . | . . . . . . . . . Recycling Units . | . . . . . . . . . Scanalyzers . | . . . . . . . . . Garrison Access 1 | . . . . . . . 1 . Total Hacks 34 | . . 9 . 5 . 8 10 2 Successful 10 | . . 2 . 5 . 1 2 . Failed 24 | . . 7 . . . 7 8 2 Catastrophic 10 | . . 3 . . . 5 1 1 Database Lockouts . | . . . . . . . . . Manual 21 | . . 9 . 1 . 8 3 . Terminals 28 | . . 9 . . . 8 9 2 Fabricators . | . . . . . . . . . Repair Stations . | . . . . . . . . . Recycling Units . | . . . . . . . . . Scanalyzers . | . . . . . . . . . Garrison Access 1 | . . . . . . . 1 . Terminal Hacks 7 | . . 1 . 5 . . 1 . Record 4 | . . . . 4 . . . . Open DSF 1 | . . . . . . . 1 . Branch Access Points 1 | . . 1 . . . . . . Derelict Proto ID Bank 1 | . . . . 1 . . . . Fabricator Hacks . | . . . . . . . . . Repair Station Hacks . | . . . . . . . . . Recycling Unit Hacks . | . . . . . . . . . Scanalyzer . | . . . . . . . . . Garrison Access Hacks 1 | . . . . . . . 1 . Unlock Access 1 | . . . . . . . 1 . Unauthorized Hacks 2 | . . 1 . . . 1 . . Terminals 2 | . . 1 . . . 1 . . Botnet 2 | . . 1 . . . 1 . . Fabricators . | . . . . . . . . . Repair Stations . | . . . . . . . . . Recycling Units . | . . . . . . . . . Scanalyzers . | . . . . . . . . . Garrison Access . | . . . . . . . . . Data Cores Recovered . | . . . . . . . . . Used . | . . . . . . . . . Hacking Detections 11 | . . 3 . . . 3 4 1 Full Trace Events 9 | . . 2 . . . 3 3 1 Feedback Events 1 | . . . . . . . 1 . Corruption 1 | . . . . . . . 1 . Feedback Blocked . | . . . . . . . . . Robot Schematics Acquired . | . . . . . . . . . Robots Built . | . . . . . . . . . Authchips . | . . . . . . . . . Time . | . . . . . . . . . Total Robot Build Rating . | . . . . . . . . . Part Schematics Acquired . | . . . . . . . . . Parts Built . | . . . . . . . . . Authchips . | . . . . . . . . . Time . | . . . . . . . . . Total Part Build Rating . | . . . . . . . . . Parts Repaired . | . . . . . . . . . Time . | . . . . . . . . . Parts Recycled . | . . . . . . . . . Recycled Matter . | . . . . . . . . . Retrieved Matter . | . . . . . . . . . Retrieved Components . | . . . . . . . . . Parts Scanalyzed . | . . . . . . . . . Part Schematics Acquired . | . . . . . . . . . Parts Damaged . | . . . . . . . . . Bothacking | -11 -10 -9 -9 -9 -8 -8 -7 -7 ------------ Run | Yrd Mat Mat Min Exi Min Mat Fac Gar Used RIF Installer . | . . . . . . . . . Robots Hacked . | . . . . . . . . . Non-combat . | . . . . . . . . . Combat . | . . . . . . . . . Robot Hacks Applied . | . . . . . . . . . Relay Couplers Released . | . . . . . . . . . Fabnet Peak Effective % . | . . . . . . . . . Robots Rewired . | . . . . . . . . . Allies Hacked . | . . . . . . . . . Hacks Repelled . | . . . . . . . . . Allies | -11 -10 -9 -9 -9 -8 -8 -7 -7 -------- Run | Yrd Mat Mat Min Exi Min Mat Fac Gar Total Allies . | . . . . . . . . . Largest Group . | . . . . . . . . . Highest-Rated Group . | . . . . . . . . . Highest-Rated Ally . | . . . . . . . . . Total Orders . | . . . . . . . . . Ally Attacks . | . . . . . . . . . Total Damage . | . . . . . . . . . Kills . | . . . . . . . . . Allies Corrupted . | . . . . . . . . . Allies Melted . | . . . . . . . . . Intel | -11 -10 -9 -9 -9 -8 -8 -7 -7 ------- Run | Yrd Mat Mat Min Exi Min Mat Fac Gar Robot Analysis Total . | . . . . . . . . . Derelict Logs Recovered . | . . . . . . . . . Drone Launches . | . . . . . . . . . Drone Recoveries . | . . . . . . . . . Exploration | -11 -10 -9 -9 -9 -8 -8 -7 -7 ------------- Run | Yrd Mat Mat Min Exi Min Mat Fac Gar Turns Passed 555 | 10 43 58 5 104 59 83 117 76 Spaces Moved 995 | 20 86 105 10 205 116 149 211 93 Core 994 | 20 86 105 10 205 116 149 211 92 Treads . | . . . . . . . . . Legs . | . . . . . . . . . Wheels . | . . . . . . . . . Hover . | . . . . . . . . . Flight 1 | . . . . . . . . 1 Fastest Speed 35 | 50 50 50 50 50 50 50 50 35 Average Speed 49 | 50 50 50 50 50 50 50 50 49 Slowest Speed 50 | 50 50 50 50 50 50 50 50 50 Overloaded Moves . | . . . . . . . . . Propulsion Burnouts . | . . . . . . . . . Robots Hopped . | . . . . . . . . . Cave-ins Triggered . | . . . . . . . . . Exploration Rate (%) 23 | 3 22 19 5 59 36 24 13 31 Regions Visited 8 Branch Regions 3 Pre-discovered Areas 1 | . . . . 1 . . . . Known Exits Taken 2 | . . 1 . . . . 1 . Unknown Exits Taken 6 | 1 1 . 1 1 1 1 . . Scrap Searched . | . . . . . . . . . Spaces Dug 27 | . . . . . . 1 8 18 Terrain Destroyed 40 | . . . . . . 1 8 31 Melee 2 | . . . . . . 1 1 . Projectile . | . . . . . . . . . AOE 38 | . . . . . . . 7 31 Terrain Rammed . | . . . . . . . . . Walls Destroyed . | . . . . . . . . . Machines Disabled . | . . . . . . . . . Actions | -11 -10 -9 -9 -9 -8 -8 -7 -7 --------- Run | Yrd Mat Mat Min Exi Min Mat Fac Gar Total 1032 | 19 85 109 9 205 116 153 218 118 Wait 1 | . . . . . . 1 . . Move 988 | 19 85 104 9 204 115 148 211 93 Hop . | . . . . . . . . . Pick Up 6 | . . 3 . 1 . 1 1 . Fast Attach . | . . . . . . . . . Attach 8 | . . . . . . 1 1 6 Detach 4 | . . . . . . . 1 3 Swap . | . . . . . . . . . Drop . | . . . . . . . . . Fire 7 | . . . . . . . 1 6 Melee 4 | . . . . . . 2 2 . Ram 3 | . . 2 . . 1 . . . Kick . | . . . . . . . . . Crush . | . . . . . . . . . Escape Stasis 11 | . . . . . . . 1 10 Rewire . | . . . . . . . . . Trap . | . . . . . . . . . Miscellaneous . | . . . . . . . . . Route ------- -11/Scrapyard -10/Materials -9/Materials (discovered 2 exits: *Min x2) -9/Mines -9/Exiles -8/Mines -8/Materials -7/Factory -7/Garrison History --------- Turn | Location | Event 4 | -11/Scrapyard | Discovered new exit (range 13) 11 | -11/Scrapyard | Entered Materials 50 | -10/Materials | Discovered new exit (range 10) 54 | -10/Materials | Entered another Materials area 54 | -9/Materials | Evolved 2 slots: Utility x2 90 | -9/Materials | Identified exit to Mines 112 | -9/Materials | Entered Mines 115 | -9/Mines | Deemed a non-threat by the Exiles lab entrance 115 | -9/Mines | Discovered new exit (range 5) 117 | -9/Mines | Entered Exiles 130 | -9/Exiles | Met 8R-AWN 139 | -9/Exiles | Met EX-HEX 152 | -9/Exiles | Met EX-BIN 158 | -9/Exiles | Aligned with FarCom system 158 | -9/Exiles | Given EX-Vault access code 170 | -9/Exiles | Opened EX-Vault 173 | -9/Exiles | Found Chronowheel 184 | -9/Exiles | Warned to stay clear of 0b10 Research branches 199 | -9/Exiles | Met EX-DEC 201 | -9/Exiles | Learned location of Zion (-7) 216 | -9/Exiles | Discovered new exit (range 10) 221 | -9/Exiles | Left Exiles lab with Chronowheel 221 | -9/Exiles | Entered Mines 277 | -8/Mines | Discovered new exit (range 7) 280 | -8/Mines | Entered Materials 280 | -8/Materials | Evolved 2 slots: Utility x2 305 | -8/Materials | Build established: Mutant 362 | -8/Materials | Discovered new exit (range 3) 363 | -8/Materials | Entered Factory 363 | -7/Factory | Evolved 2 slots: Utility x2 480 | -7/Factory | Identified exit to Garrison 480 | -7/Factory | Entered Garrison 516 | -7/Garrison | Core integrity fell below 50% 527 | -7/Garrison | Triggered checkpoint 530 | -7/Garrison | Triggered checkpoint 539 | -7/Garrison | Core integrity fell below 20% 556 | -7/Garrison | Destroyed by G-47 Trooper with Particle Gun Last Messages --------------- 00536_ Penetrated by Slug. 00536_ Rocket Launcher destroyed. 00538_ Slug penetrates G-47 Trooper. 00538_ G-47 Trooper destroyed. 00539_ Critical hit (Burn: +37). 00545_ Triggered Stasis Trap. 00545_ A bubble of rippling energy engulfs the area. 00545_ Field strength at 94. 00546_ Field strength at 88. 00547_ Field strength at 82. 00548_ Field strength at 72. 00549_ Field strength at 66. 00550_ Field strength at 60. 00551_ Field strength at 50. 00552_ Field strength at 44. 00553_ Penetrated by Slug. 00553_ Field strength at 29. 00554_ Field strength at 16. 00555_ Field strength at 10. 00556_ Stasis field depleted. Map ----- +----------------------------------------------------+ | ?????????????????????????????????????????????????? | | ?????????????????????????????????????????????????? | | ?????????????????????????????????????????????????? | | ?????????????????????????????????????????????????? | | ?????????????????????????????????????????????????? | | ?????????????????????????????????????????????????? | | ?????????????????????????????????????????????????? | | ?????????????????????????????????????????????????? | | ?????????????????????????????????????????????????? | | ?????????????????????????????????????????????????? | | ????????????????????????? ?????????????????????? | | ????????????????????????? #??????Y?????????????? | | ????????????????????????? #????????????????????? | | ????????????????????????? #????????????????????? | | ????????????????????????? #????????????????????? | | ????????????????????????? #????????????????????? | | ????????????????????????? #????????????????????? | | ????????????????????????# #????????????????????? | | ????????????????????????# #????????????????????? | | ????????????????????????# #????????????????????? | | ????????????????????????# #????????????????????? | | ????????????????????????# #????????????????????? | | ????????????????????????# #????????????????????? | | ???????????Y????????????# #????????????????????? | | ???######""""############^ #????????????????????? | | ??? @^ #????????????????????? | | ??? s g g #????????????????????? | | ??? gg #????????????????????? | | ???? ## ## hg###########????????????????????? | | ???#*%%= ## ###????????????????????????????? | | ??? [[ * gg *#????????????????????????????? | | ??? % !%#????????????????????????????? | | ?? [ hh #????????????????????????????? | | ?? %[ #????????????????????????????? | | ???# ## * ###?????????????? ?????????????? | | ??## ## =% #??###????????? ?????????????? | | ?? ##### ????????? ?????????????? | | ?? # ????????? ?????????????? | | ???# #### # ###?????? ?????????????? | | ???## ## ## #????# #?????? ?????????????? | | ????#???# ?# ##????# #?????? #????????????? | | ????????####?## ##?????# #?????# ????????????? | | ????????????## #?????## ##?????# ????????????? | | ????????????# #??????# #??###?# ????????????? | | ????????????# #????### #? ??+ #????????????? | | ????????????# #????# ## #???# #????????????? | | ????????????## ###### ##???# #????????????? | | ?????????????## #???# #???#####????? | | ??????????????# ##### #####"T"#????? | | ??????????????########## # "#????? | +----------------------------------------------------+ Best States ------------- Heat Dissipation 34 Energy Generation 5 Energy Capacity 100 Matter Stores 300 Matter Capacity 300 Sight Range 16 Terrain Scan Density 10 Evasion (%) 53 Item Schematics ----------------- None Robot Schematics ------------------ None Fabricated ------------ Nothing Alien Tech Used ----------------- None Achievements -------------- None Challenges ------------ None Game ------ Seed RestorationNuclearExtractor Manual? 0 Play Time 00:11:08 Cumulative 195.8 hours Start 2024.07.13 @ 19:31:41 End 2024.07.13 @ 19:40:46 Sessions 1 Manual Loads 0 Difficulty Rogue Special Mode None Game No. 89 Rogue 89 Adventurer 0 Explorer 0 Win Type - Total 4 Types 2/0/2/0/0/0/0/0/0 Lore% 77 Gallery% 84 Achievement% 63 Wizard Run 0 Options --------- Layout 0 ASCII 0 Keyboard 0 Movement Mouse Keybinds 0 Fullscreen 2 Font 14/SmallcapsGlow Map View 72x54 Zoom Use 0% Tactical HUD 1 Map Filters NONE Filters NONE Steam 1 RUN: 2c4bdb5d-0628-4e9d-91f2-ac7706e7fa70